[Event "GrandPrix_29.05"]
[Site "Chess.com"]
[Date "2020.05.29"]
[Round "3"]
[White "dzhumagaliev"]
[Black "zuagroasta"]
[Result "1-0"]
[WhiteElo "2086"]
[BlackElo "1369"]
[TimeControl "600+2"]
[EndTime "10:22:39 PDT"]
[Termination "dzhumagaliev won by resignation"]

1. Nf3 {[%clk 0:10:01.6]} 1... d5 {[%clk 0:09:57.8]} 2. d4 {[%clk 0:10:03.5]}
2... Nf6 {[%clk 0:09:50.4]} 3. c4 {[%clk 0:10:05.4]} 3... e6 {[%clk 0:09:48.5]}
4. g3 {[%clk 0:10:06.5]} 4... Bb4+ {[%clk 0:09:37.9]} 5. Bd2 {[%clk 0:10:06.7]}
5... a5 {[%clk 0:09:38.5]} 6. Bg2 {[%clk 0:10:07.5]} 6... Kf8 {[%clk 0:09:38.3]}
7. O-O {[%clk 0:10:08.3]} 7... Bxd2 {[%clk 0:08:56.9]} 8. Qxd2 {[%clk
0:10:07.5]} 8... Ne4 {[%clk 0:08:49.6]} 9. Qc2 {[%clk 0:10:00]} 9... g6 {[%clk
0:08:43.3]} 10. Ne5 {[%clk 0:09:50]} 10... f6 {[%clk 0:08:21.8]} 11. Nd3 {[%clk
0:09:42.7]} 11... b6 {[%clk 0:08:01]} 12. Nf4 {[%clk 0:09:38]} 12... c6 {[%clk
0:07:50.6]} 13. Bxe4 {[%clk 0:09:07.7]} 13... dxe4 {[%clk 0:07:50.5]} 14. Qxe4
{[%clk 0:09:09.6]} 14... Kf7 {[%clk 0:07:47.6]} 15. Nc3 {[%clk 0:09:05.9]} 15...
Re8 {[%clk 0:07:46.8]} 16. Rad1 {[%clk 0:09:00.5]} 16... Ba6 {[%clk 0:07:43.9]}
17. b3 {[%clk 0:08:57.1]} 17... Ra7 {[%clk 0:07:43.6]} 18. h4 {[%clk 0:08:55.7]}
18... Qd6 {[%clk 0:07:09.4]} 19. h5 {[%clk 0:08:49.1]} 19... Rg8 {[%clk
0:07:08.1]} 20. d5 {[%clk 0:07:46.5]} 20... exd5 {[%clk 0:06:58.4]} 21. cxd5
{[%clk 0:07:43.9]} 21... Rb7 {[%clk 0:06:54]} 22. dxc6 {[%clk 0:07:20.6]} 22...
Qxc6 {[%clk 0:06:51.6]} 23. Ncd5 {[%clk 0:07:21]} 23... Qd6 {[%clk 0:05:50.6]}
24. hxg6+ {[%clk 0:06:36.9]} 24... hxg6 {[%clk 0:05:49.7]} 25. Nxg6 {[%clk
0:06:32.3]} 25... Rd7 {[%clk 0:05:02.5]} 26. Ngf4 {[%clk 0:06:00.5]} 26... Bb7
{[%clk 0:05:01.1]} 27. Qh7+ {[%clk 0:05:46.4]} 27... Kf8 {[%clk 0:04:55.6]} 28.
Qh6+ {[%clk 0:05:39.6]} 28... Kf7 {[%clk 0:04:52.2]} 29. e4 {[%clk 0:04:56.6]}
29... Qe5 {[%clk 0:04:40.8]} 30. Qh7+ {[%clk 0:04:19.4]} 30... Rg7 {[%clk
0:04:37.4]} 31. Qh5+ {[%clk 0:04:20.2]} 31... Qxh5 {[%clk 0:04:16.1]} 32. Nxh5
{[%clk 0:04:22.1]} 32... Rg6 {[%clk 0:04:05.7]} 33. Ndxf6 {[%clk 0:03:18.3]}
33... Rxf6 {[%clk 0:03:58.4]} 34. Nxf6 {[%clk 0:03:20.2]} 34... Kxf6 {[%clk
0:03:58.8]} 35. Rxd7 {[%clk 0:03:21]} 35... Nxd7 {[%clk 0:03:59]} 36. f3 {[%clk
0:03:22.4]} 36... Ke5 {[%clk 0:03:50.4]} 37. Kf2 {[%clk 0:03:21.8]} 37... Kd6
{[%clk 0:03:37.9]} 38. Ke3 {[%clk 0:03:20.2]} 38... Nf6 {[%clk 0:03:29.1]} 39.
g4 {[%clk 0:03:11.2]} 39... Ke5 {[%clk 0:03:18.4]} 40. g5 {[%clk 0:03:06]} 40...
Ne8 {[%clk 0:03:11.9]} 41. f4+ {[%clk 0:03:06.4]} 41... Ke6 {[%clk 0:02:41]} 42.
f5+ {[%clk 0:03:02.8]} 42... Kf7 {[%clk 0:02:35]} 43. e5 {[%clk 0:02:48.4]} 1-0

[Event "GrandPrix_29.05"]
[Site "Chess.com"]
[Date "2020.05.29"]
[Round "3"]
[White "jncool68"]
[Black "Mikhail_Golubev"]
[Result "1-0"]
[WhiteElo "2151"]
[BlackElo "2100"]
[TimeControl "600+2"]
[EndTime "10:22:53 PDT"]
[Termination "jncool68 won on time"]

1. e4 {[%clk 0:10:01.9]} 1... c5 {[%clk 0:09:57.5]} 2. Nf3 {[%clk 0:10:02]} 2...
d6 {[%clk 0:09:38.1]} 3. d4 {[%clk 0:10:01.5]} 3... Nf6 {[%clk 0:09:37.9]} 4.
Nc3 {[%clk 0:10:01.6]} 4... cxd4 {[%clk 0:09:32.4]} 5. Nxd4 {[%clk 0:10:03.5]}
5... g6 {[%clk 0:09:33.4]} 6. Be3 {[%clk 0:10:00.6]} 6... Bg7 {[%clk 0:09:34.1]}
7. Be2 {[%clk 0:10:01.6]} 7... Nc6 {[%clk 0:09:32.3]} 8. Qd2 {[%clk 0:10:02.3]}
8... O-O {[%clk 0:09:32.7]} 9. O-O-O {[%clk 0:10:02.6]} 9... Ng4 {[%clk
0:09:32.9]} 10. Bxg4 {[%clk 0:10:02.6]} 10... Bxg4 {[%clk 0:09:33.5]} 11. f3
{[%clk 0:10:03.4]} 11... Bd7 {[%clk 0:09:32.9]} 12. h4 {[%clk 0:09:58.2]} 12...
Ne5 {[%clk 0:09:29.5]} 13. b3 {[%clk 0:09:56.5]} 13... Qa5 {[%clk 0:07:29.7]}
14. Kb1 {[%clk 0:09:37.1]} 14... Rfc8 {[%clk 0:07:22]} 15. Nd5 {[%clk
0:09:35.7]} 15... Qxd2 {[%clk 0:07:09.1]} 16. Rxd2 {[%clk 0:09:32.9]} 16... Kf8
{[%clk 0:07:07.5]} 17. h5 {[%clk 0:09:30.5]} 17... e6 {[%clk 0:06:44.4]} 18. Nf4
{[%clk 0:09:30.5]} 18... Rc3 {[%clk 0:06:26.1]} 19. Bf2 {[%clk 0:09:21.6]} 19...
g5 {[%clk 0:04:18.1]} 20. h6 {[%clk 0:08:06.9]} 20... Bf6 {[%clk 0:04:00.7]} 21.
Nfe2 {[%clk 0:08:00]} 21... Rcc8 {[%clk 0:03:47.6]} 22. Be3 {[%clk 0:07:54.3]}
22... Ke7 {[%clk 0:03:24.3]} 23. c4 {[%clk 0:07:37.8]} 23... a6 {[%clk
0:03:17.5]} 24. Rh5 {[%clk 0:07:32.3]} 24... Rg8 {[%clk 0:02:43.2]} 25. Nc3
{[%clk 0:07:16.2]} 25... Bc6 {[%clk 0:02:15.4]} 26. Rh1 {[%clk 0:06:40]} 26...
Rac8 {[%clk 0:02:03.7]} 27. Rhd1 {[%clk 0:06:34.7]} 27... Rg6 {[%clk 0:01:49.9]}
28. Nxc6+ {[%clk 0:05:53.9]} 28... Rxc6 {[%clk 0:01:44]} 29. Rxd6 {[%clk
0:05:53]} 29... Rxd6 {[%clk 0:01:41.6]} 30. Bc5 {[%clk 0:05:53.7]} 30... Nxc4
{[%clk 0:01:36.3]} 31. bxc4 {[%clk 0:05:54.1]} 31... Bxc3 {[%clk 0:01:08.8]} 32.
Rxd6 {[%clk 0:05:53.9]} 32... Ke8 {[%clk 0:00:28.3]} 33. Rb6 {[%clk 0:05:46.9]}
33... Rxh6 {[%clk 0:00:22.1]} 34. Rxb7 {[%clk 0:05:32.4]} 34... Bf6 {[%clk
0:00:19.6]} 35. Bd6 {[%clk 0:05:30.9]} 35... Rh1+ {[%clk 0:00:17.7]} 36. Kc2
{[%clk 0:05:31.1]} 36... Rg1 {[%clk 0:00:17.9]} 37. c5 {[%clk 0:05:31.3]} 37...
Rxg2+ {[%clk 0:00:18.3]} 38. Kd3 {[%clk 0:05:32]} 38... Rg1 {[%clk 0:00:16.3]}
39. c6 {[%clk 0:05:32.4]} 39... Rd1+ {[%clk 0:00:17]} 40. Kc4 {[%clk 0:05:28.5]}
40... Rxd6 {[%clk 0:00:16.8]} 41. Kc5 {[%clk 0:05:24.2]} 41... Be7 {[%clk
0:00:15.9]} 42. e5 {[%clk 0:05:12.8]} 42... Rd1+ {[%clk 0:00:16.1]} 43. Kb6
{[%clk 0:05:12.3]} 43... Rb1+ {[%clk 0:00:15.6]} 44. Ka7 {[%clk 0:05:11.4]}
44... Rc1 {[%clk 0:00:16.1]} 45. c7 {[%clk 0:05:12.1]} 45... Kd7 {[%clk
0:00:10.3]} 46. Kb8 {[%clk 0:05:12.5]} 1-0

[Event "GrandPrix_29.05"]
[Site "Chess.com"]
[Date "2020.05.29"]
[Round "3"]
[White "Chessbuster123"]
[Black "Grebnev_A"]
[Result "0-1"]
[WhiteElo "1988"]
[BlackElo "2169"]
[TimeControl "600+2"]
[EndTime "10:23:03 PDT"]
[Termination "Grebnev_A won by resignation"]

1. d4 {[%clk 0:09:42.9]} 1... Nf6 {[%clk 0:10:00.9]} 2. c4 {[%clk 0:09:43.7]}
2... g6 {[%clk 0:10:02.2]} 3. g3 {[%clk 0:09:44.6]} 3... Bg7 {[%clk 0:10:03.5]}
4. Bg2 {[%clk 0:09:45.9]} 4... O-O {[%clk 0:10:05.4]} 5. Nc3 {[%clk 0:09:45.8]}
5... d6 {[%clk 0:10:06.8]} 6. Nf3 {[%clk 0:09:46.6]} 6... Nc6 {[%clk 0:10:07.9]}
7. d5 {[%clk 0:09:47.7]} 7... Na5 {[%clk 0:10:08.2]} 8. Nd2 {[%clk 0:09:48]}
8... c6 {[%clk 0:09:46.9]} 9. dxc6 {[%clk 0:09:23.2]} 9... bxc6 {[%clk
0:09:47.1]} 10. O-O {[%clk 0:09:24.6]} 10... Rb8 {[%clk 0:09:47.3]} 11. Rb1
{[%clk 0:09:23.5]} 11... c5 {[%clk 0:09:48]} 12. a3 {[%clk 0:09:18.9]} 12... Be6
{[%clk 0:09:29.9]} 13. Nd5 {[%clk 0:09:03.3]} 13... Nxd5 {[%clk 0:09:11.2]} 14.
cxd5 {[%clk 0:09:05.2]} 14... Bf5 {[%clk 0:08:23.9]} 15. e4 {[%clk 0:09:03.7]}
15... Bd7 {[%clk 0:08:24]} 16. b4 {[%clk 0:09:02.6]} 16... Nb7 {[%clk
0:08:24.5]} 17. Bb2 {[%clk 0:08:57.4]} 17... Bxb2 {[%clk 0:08:04.5]} 18. Rxb2
{[%clk 0:08:59.3]} 18... cxb4 {[%clk 0:07:49.6]} 19. axb4 {[%clk 0:08:59.9]}
19... Nc5 {[%clk 0:07:41]} 20. Qc2 {[%clk 0:08:50.3]} 20... Na4 {[%clk
0:07:36.1]} 21. Rb3 {[%clk 0:08:43.8]} 21... Nb6 {[%clk 0:07:30.1]} 22. Ra3
{[%clk 0:08:26.9]} 22... a6 {[%clk 0:07:26.1]} 23. Rfa1 {[%clk 0:08:18.3]} 23...
Bb5 {[%clk 0:07:26.2]} 24. Bf1 {[%clk 0:08:16.2]} 24... Qd7 {[%clk 0:07:00.8]}
25. Rc3 {[%clk 0:08:00.7]} 25... Rfc8 {[%clk 0:06:58]} 26. Bxb5 {[%clk
0:07:43.7]} 26... Qxb5 {[%clk 0:06:56.2]} 27. Rc6 {[%clk 0:07:12.3]} 27... Rxc6
{[%clk 0:06:26.2]} 28. dxc6 {[%clk 0:07:14.2]} 28... Rc8 {[%clk 0:06:26.3]} 29.
Ra5 {[%clk 0:06:33]} 29... Qxb4 {[%clk 0:06:01.4]} 30. Rxa6 {[%clk 0:06:32]}
30... Qb5 {[%clk 0:06:02.5]} 31. Ra7 {[%clk 0:06:18.5]} 31... Rxc6 {[%clk
0:05:51.9]} 32. Qb3 {[%clk 0:06:13.5]} 32... Qxb3 {[%clk 0:05:19.5]} 33. Nxb3
{[%clk 0:06:15.4]} 33... Nc8 {[%clk 0:05:21]} 34. Ra8 {[%clk 0:06:05.7]} 34...
Kg7 {[%clk 0:05:19.9]} 35. Kg2 {[%clk 0:06:04.7]} 35... Rc3 {[%clk 0:05:10.7]}
36. Nd2 {[%clk 0:05:42.8]} 36... Rc7 {[%clk 0:05:07.4]} 37. Nf1 {[%clk
0:05:41.7]} 37... Nb6 {[%clk 0:05:01.3]} 38. Re8 {[%clk 0:05:34.3]} 38... Kf6
{[%clk 0:04:31.7]} 39. Ne3 {[%clk 0:05:34.7]} 39... Ke5 {[%clk 0:04:30.4]} 40.
Kf3 {[%clk 0:05:28]} 40... h5 {[%clk 0:04:29.2]} 41. Rb8 {[%clk 0:05:19.9]}
41... Nc4 {[%clk 0:03:58]} 42. Rb5+ {[%clk 0:05:13.9]} 42... Kd4 {[%clk
0:03:40]} 43. Rd5+ {[%clk 0:05:02.9]} 43... Kc3 {[%clk 0:03:39.5]} 44. Nd1+
{[%clk 0:04:14.3]} 44... Kb4 {[%clk 0:03:16.6]} 45. Rd4 {[%clk 0:04:04]} 45...
Kc5 {[%clk 0:03:08.7]} 46. Rd5+ {[%clk 0:04:04.7]} 46... Kc6 {[%clk 0:03:10.3]}
47. Nc3 {[%clk 0:03:51.2]} 47... Ra7 {[%clk 0:03:08.7]} 48. Rd4 {[%clk
0:03:36.6]} 48... Kc5 {[%clk 0:02:55.1]} 49. Rd5+ {[%clk 0:03:35]} 49... Kb4
{[%clk 0:02:56.2]} 50. Nd1 {[%clk 0:03:25.2]} 50... Ra3+ {[%clk 0:02:51.4]} 51.
Kg2 {[%clk 0:03:25.8]} 51... e6 {[%clk 0:02:39.7]} 52. Rg5 {[%clk 0:03:23.6]}
52... Rd3 {[%clk 0:02:39]} 53. Ne3 {[%clk 0:03:11.5]} 53... Nxe3+ {[%clk
0:02:39.7]} 54. fxe3 {[%clk 0:03:13.4]} 54... Rxe3 {[%clk 0:02:41.6]} 55. e5
{[%clk 0:03:15.3]} 55... Rxe5 {[%clk 0:02:42.3]} 56. Rxe5 {[%clk 0:03:16.5]}
56... dxe5 {[%clk 0:02:44.2]} 57. Kf3 {[%clk 0:03:17.4]} 57... f5 {[%clk
0:02:41.6]} 0-1

[Event "GrandPrix_29.05"]
[Site "Chess.com"]
[Date "2020.05.29"]
[Round "3"]
[White "chessfreak35"]
[Black "Gabrielian_Artur"]
[Result "0-1"]
[WhiteElo "2267"]
[BlackElo "2668"]
[TimeControl "600+2"]
[EndTime "10:23:09 PDT"]
[Termination "Gabrielian_Artur won by resignation"]

1. e4 {[%clk 0:10:01.9]} 1... c5 {[%clk 0:10:00.1]} 2. Nf3 {[%clk 0:10:03.3]}
2... d6 {[%clk 0:10:01]} 3. d4 {[%clk 0:10:04.9]} 3... cxd4 {[%clk 0:10:02]} 4.
Nxd4 {[%clk 0:10:05]} 4... Nf6 {[%clk 0:10:02.7]} 5. Nc3 {[%clk 0:10:06.3]} 5...
Nc6 {[%clk 0:10:03.4]} 6. Bg5 {[%clk 0:10:06.2]} 6... e6 {[%clk 0:10:04.4]} 7.
Qd3 {[%clk 0:10:06.5]} 7... Bd7 {[%clk 0:10:00.3]} 8. Ndb5 {[%clk 0:10:03.8]}
8... Nb4 {[%clk 0:09:58]} 9. Qd1 {[%clk 0:10:04.3]} 9... a6 {[%clk 0:09:51.1]}
10. a3 {[%clk 0:10:05]} 10... axb5 {[%clk 0:07:26.5]} 11. axb4 {[%clk
0:10:05.6]} 11... Rxa1 {[%clk 0:07:18.9]} 12. Qxa1 {[%clk 0:10:05.9]} 12... Be7
{[%clk 0:07:19.6]} 13. Bxb5 {[%clk 0:07:08.2]} 13... Bxb5 {[%clk 0:07:13.7]} 14.
Bxf6 {[%clk 0:06:39.2]} 14... Bxf6 {[%clk 0:06:56]} 15. Nxb5 {[%clk 0:06:40.3]}
15... O-O {[%clk 0:06:56.4]} 16. O-O {[%clk 0:06:34.9]} 16... d5 {[%clk
0:06:32.6]} 17. Rd1 {[%clk 0:04:33.6]} 17... Qb6 {[%clk 0:06:17.4]} 18. Qa5
{[%clk 0:04:34.5]} 18... Qc6 {[%clk 0:05:31.7]} 19. Nc3 {[%clk 0:03:18.2]} 19...
d4 {[%clk 0:04:19.8]} 20. e5 {[%clk 0:03:18.1]} 20... Bd8 {[%clk 0:03:31]} 21.
Qb5 {[%clk 0:01:19.2]} 21... dxc3 {[%clk 0:03:26.6]} 22. Qxc6 {[%clk 0:01:20.4]}
22... bxc6 {[%clk 0:03:27.5]} 23. bxc3 {[%clk 0:01:22]} 23... Bc7 {[%clk
0:03:13.3]} 24. f4 {[%clk 0:01:22.2]} 24... Rd8 {[%clk 0:03:11.8]} 25. Ra1
{[%clk 0:00:45.3]} 25... g5 {[%clk 0:03:12]} 26. g3 {[%clk 0:00:43.9]} 26...
Bb6+ {[%clk 0:03:10]} 27. Kf1 {[%clk 0:00:42.6]} 27... gxf4 {[%clk 0:03:10.7]}
28. gxf4 {[%clk 0:00:43.8]} 28... Be3 {[%clk 0:03:03]} 29. Ra6 {[%clk
0:00:44.7]} 29... Rc8 {[%clk 0:03:03.9]} 0-1

[Event "GrandPrix_29.05"]
[Site "Chess.com"]
[Date "2020.05.29"]
[Round "3"]
[White "Alexander_Moskalenko"]
[Black "KuzubovYuriy"]
[Result "0-1"]
[WhiteElo "2137"]
[BlackElo "2498"]
[TimeControl "600+2"]
[EndTime "10:23:31 PDT"]
[Termination "KuzubovYuriy won by checkmate"]

1. e4 {[%clk 0:09:56.2]} 1... c5 {[%clk 0:09:54.4]} 2. Nc3 {[%clk 0:09:55.6]}
2... d6 {[%clk 0:09:47.8]} 3. d4 {[%clk 0:09:55.3]} 3... cxd4 {[%clk 0:09:43.7]}
4. Qxd4 {[%clk 0:09:57.2]} 4... Nf6 {[%clk 0:09:44.6]} 5. Bb5+ {[%clk
0:09:50.8]} 5... Bd7 {[%clk 0:09:37.5]} 6. Bxd7+ {[%clk 0:09:50.5]} 6... Nfxd7
{[%clk 0:08:58]} 7. Bg5 {[%clk 0:09:52.4]} 7... Nc6 {[%clk 0:08:52.7]} 8. Qd2
{[%clk 0:09:51.2]} 8... g6 {[%clk 0:08:06.8]} 9. Nge2 {[%clk 0:09:46.8]} 9... h6
{[%clk 0:07:53.5]} 10. Bf4 {[%clk 0:09:42.9]} 10... Bg7 {[%clk 0:07:51.3]} 11.
O-O {[%clk 0:09:32.6]} 11... Rc8 {[%clk 0:07:30.4]} 12. Nd5 {[%clk 0:09:14.6]}
12... Nc5 {[%clk 0:07:07.2]} 13. Nec3 {[%clk 0:08:57.8]} 13... e6 {[%clk
0:06:44.8]} 14. Ne3 {[%clk 0:08:53.2]} 14... Bxc3 {[%clk 0:06:23.9]} 15. Qxc3
{[%clk 0:08:21.4]} 15... e5 {[%clk 0:06:23.5]} 16. Bg3 {[%clk 0:08:00.2]} 16...
Nxe4 {[%clk 0:05:46.2]} 17. Qb3 {[%clk 0:07:21.8]} 17... Nd2 {[%clk 0:05:25.3]}
18. Qxb7 {[%clk 0:07:21.3]} 18... Nxf1 {[%clk 0:05:20.6]} 19. Rxf1 {[%clk
0:07:23.2]} 19... Qd7 {[%clk 0:04:57.4]} 20. Qa6 {[%clk 0:07:12.9]} 20... O-O
{[%clk 0:04:38.6]} 21. f4 {[%clk 0:07:13.4]} 21... f5 {[%clk 0:04:24.6]} 22. Rd1
{[%clk 0:07:00.9]} 22... Qe6 {[%clk 0:04:07.4]} 23. Nd5 {[%clk 0:06:44.7]} 23...
Nd4 {[%clk 0:03:54.1]} 24. c4 {[%clk 0:06:37.7]} 24... Ne2+ {[%clk 0:03:30.3]}
25. Kf2 {[%clk 0:06:22.8]} 25... exf4 {[%clk 0:03:23.1]} 26. Bxf4 {[%clk
0:06:24.7]} 26... Nxf4 {[%clk 0:03:11]} 27. Nxf4 {[%clk 0:06:23.1]} 27... Qxc4
{[%clk 0:03:07.3]} 28. Qxc4+ {[%clk 0:06:07.1]} 28... Rxc4 {[%clk 0:03:07.7]}
29. Nxg6 {[%clk 0:06:09]} 29... Rc2+ {[%clk 0:02:56.7]} 30. Kf3 {[%clk
0:06:09.4]} 30... Rf6 {[%clk 0:02:10.9]} 31. Ne7+ {[%clk 0:06:01.5]} 31... Kg7
{[%clk 0:01:56.5]} 32. Nd5 {[%clk 0:05:56.9]} 32... Rf7 {[%clk 0:01:57.2]} 33.
Nf4 {[%clk 0:04:19.8]} 33... Rd7 {[%clk 0:01:53.9]} 34. Nd3 {[%clk 0:04:20]}
34... d5 {[%clk 0:01:52.6]} 35. h4 {[%clk 0:04:17.7]} 35... d4 {[%clk
0:01:51.9]} 36. g3 {[%clk 0:04:18.2]} 36... Re7 {[%clk 0:01:49.3]} 37. g4 {[%clk
0:03:55]} 37... Re3+ {[%clk 0:01:31.4]} 38. Kf4 {[%clk 0:03:55.1]} 38... fxg4
{[%clk 0:01:29.9]} 39. Kxg4 {[%clk 0:03:57]} 39... h5+ {[%clk 0:01:29.9]} 40.
Kxh5 {[%clk 0:03:54]} 40... Rg2 {[%clk 0:01:28.1]} 41. b4 {[%clk 0:02:56.9]}
41... Re6 {[%clk 0:01:25.3]} 42. Nf4 {[%clk 0:02:54.6]} 42... Rh6# {[%clk
0:01:24.8]} 0-1

[Event "GrandPrix_29.05"]
[Site "Chess.com"]
[Date "2020.05.29"]
[Round "3"]
[White "weplaychess09"]
[Black "AnotherGrumpy"]
[Result "1-0"]
[WhiteElo "2100"]
[BlackElo "1708"]
[TimeControl "600+2"]
[EndTime "10:23:31 PDT"]
[Termination "weplaychess09 won by resignation"]

1. d4 {[%clk 0:10:01.9]} 1... d5 {[%clk 0:09:52.4]} 2. c4 {[%clk 0:10:02.7]}
2... c6 {[%clk 0:09:50.7]} 3. Nc3 {[%clk 0:10:03.1]} 3... Nf6 {[%clk 0:09:45.4]}
4. e3 {[%clk 0:10:02.2]} 4... e6 {[%clk 0:09:42.4]} 5. Nf3 {[%clk 0:10:02.1]}
5... Nbd7 {[%clk 0:09:39.1]} 6. Qc2 {[%clk 0:10:02.2]} 6... Bd6 {[%clk
0:09:38.1]} 7. b3 {[%clk 0:10:01.5]} 7... dxc4 {[%clk 0:09:02.9]} 8. bxc4 {[%clk
0:10:01.5]} 8... e5 {[%clk 0:09:03.7]} 9. Be2 {[%clk 0:09:58.2]} 9... O-O {[%clk
0:09:02.5]} 10. O-O {[%clk 0:09:58.2]} 10... exd4 {[%clk 0:09:00]} 11. exd4
{[%clk 0:09:58.3]} 11... Re8 {[%clk 0:09:01.2]} 12. Bg5 {[%clk 0:09:49.5]} 12...
h6 {[%clk 0:08:56.5]} 13. Bh4 {[%clk 0:09:49.7]} 13... Qc7 {[%clk 0:08:47.1]}
14. Rfe1 {[%clk 0:09:38.7]} 14... b6 {[%clk 0:08:24.1]} 15. Rad1 {[%clk
0:09:20.5]} 15... Bb7 {[%clk 0:08:22.8]} 16. Bf1 {[%clk 0:08:42.9]} 16... Bb4
{[%clk 0:07:14.6]} 17. Qb3 {[%clk 0:07:51.5]} 17... Bxc3 {[%clk 0:07:10.5]} 18.
Qxc3 {[%clk 0:07:51.1]} 18... Ne4 {[%clk 0:07:05]} 19. Qc2 {[%clk 0:07:46.1]}
19... Qf4 {[%clk 0:06:59.9]} 20. Re3 {[%clk 0:06:55.9]} 20... Ng5 {[%clk
0:06:14.9]} 21. Bg3 {[%clk 0:06:45.6]} 21... Nxf3+ {[%clk 0:06:12.9]} 22. Rxf3
{[%clk 0:06:46]} 22... Qg4 {[%clk 0:06:09.7]} 23. c5 {[%clk 0:06:32.7]} 23...
Nf6 {[%clk 0:05:59.9]} 24. Be5 {[%clk 0:06:14.8]} 24... Rxe5 {[%clk 0:04:54]}
25. dxe5 {[%clk 0:06:14.1]} 25... Nd5 {[%clk 0:04:55.9]} 26. Bc4 {[%clk
0:05:03.2]} 26... bxc5 {[%clk 0:04:31.1]} 27. Bxd5 {[%clk 0:04:59.3]} 27... cxd5
{[%clk 0:04:33]} 28. Qxc5 {[%clk 0:04:51.2]} 28... d4 {[%clk 0:04:13.6]} 29. h3
{[%clk 0:04:34.9]} 29... Qh5 {[%clk 0:04:00]} 30. Rfd3 {[%clk 0:04:29.7]} 30...
Re8 {[%clk 0:03:31.7]} 31. Qxa7 {[%clk 0:04:08.1]} 31... Be4 {[%clk 0:03:17.3]}
32. Rxd4 {[%clk 0:04:00.1]} 32... Rxe5 {[%clk 0:03:18.2]} 33. Re1 {[%clk
0:03:33.3]} 33... f5 {[%clk 0:01:13.9]} 34. f3 {[%clk 0:03:05]} 1-0

[Event "GrandPrix_29.05"]
[Site "Chess.com"]
[Date "2020.05.29"]
[Round "3"]
[White "Malysch"]
[Black "Borsuk_Konstantin"]
[Result "1-0"]
[WhiteElo "2214"]
[BlackElo "1772"]
[TimeControl "600+2"]
[EndTime "10:23:37 PDT"]
[Termination "Malysch won on time"]

1. d4 {[%clk 0:10:01.9]} 1... Nf6 {[%clk 0:09:59.7]} 2. c4 {[%clk 0:10:02.7]}
2... e6 {[%clk 0:10:00.1]} 3. g3 {[%clk 0:10:00.1]} 3... Bb4+ {[%clk 0:09:57.2]}
4. Nd2 {[%clk 0:10:00.3]} 4... O-O {[%clk 0:09:34.3]} 5. Bg2 {[%clk 0:10:00.2]}
5... d5 {[%clk 0:09:02.6]} 6. Nf3 {[%clk 0:09:59.1]} 6... Re8 {[%clk 0:08:49.7]}
7. O-O {[%clk 0:09:58.8]} 7... Nbd7 {[%clk 0:08:40.7]} 8. Qc2 {[%clk 0:09:58.5]}
8... c6 {[%clk 0:07:41.6]} 9. e4 {[%clk 0:09:55.7]} 9... dxc4 {[%clk 0:06:37.5]}
10. Nxc4 {[%clk 0:09:54.4]} 10... h6 {[%clk 0:06:31.1]} 11. Rd1 {[%clk
0:09:51.5]} 11... Nf8 {[%clk 0:06:05.4]} 12. Be3 {[%clk 0:09:42.5]} 12... N6d7
{[%clk 0:05:59.9]} 13. Rac1 {[%clk 0:09:38.5]} 13... Nb6 {[%clk 0:05:47.7]} 14.
Nce5 {[%clk 0:09:35.1]} 14... f6 {[%clk 0:05:43.7]} 15. Nd3 {[%clk 0:09:19.9]}
15... Be7 {[%clk 0:05:32.2]} 16. Nc5 {[%clk 0:09:19.6]} 16... Nbd7 {[%clk
0:05:27]} 17. Nd3 {[%clk 0:08:53.1]} 17... a5 {[%clk 0:05:08.6]} 18. Qc4 {[%clk
0:08:17.9]} 18... Nb6 {[%clk 0:05:05.5]} 19. Qc2 {[%clk 0:08:16.4]} 19... Nbd7
{[%clk 0:05:03.6]} 20. Nf4 {[%clk 0:08:02.1]} 20... a4 {[%clk 0:04:41.3]} 21. a3
{[%clk 0:07:41.5]} 21... Qa5 {[%clk 0:03:54.4]} 22. d5 {[%clk 0:07:03]} 22...
cxd5 {[%clk 0:03:25]} 23. exd5 {[%clk 0:07:04.9]} 23... e5 {[%clk 0:03:20.3]}
24. Nh5 {[%clk 0:05:58.4]} 24... g6 {[%clk 0:02:11]} 25. d6 {[%clk 0:05:55.2]}
25... Bd8 {[%clk 0:02:00.3]} 26. Nh4 {[%clk 0:05:23.3]} 26... gxh5 {[%clk
0:01:10.4]} 27. Bd5+ {[%clk 0:05:21]} 27... Kh8 {[%clk 0:00:59.4]} 28. Bf7
{[%clk 0:04:50]} 28... Re6 {[%clk 0:00:50.4]} 29. Bxe6 {[%clk 0:04:17.8]} 29...
Nxe6 {[%clk 0:00:50.3]} 30. Qg6 {[%clk 0:04:19.2]} 30... Ndf8 {[%clk 0:00:33.6]}
31. Qxh6+ {[%clk 0:04:14.2]} 31... Kg8 {[%clk 0:00:33.9]} 32. Ng6 {[%clk
0:03:55]} 32... Bd7 {[%clk 0:00:08.4]} 33. Ne7+ {[%clk 0:03:38.7]} 33... Kf7
{[%clk 0:00:03.2]} 34. Qxh5+ {[%clk 0:03:35.7]} 1-0

[Event "GrandPrix_29.05"]
[Site "Chess.com"]
[Date "2020.05.29"]
[Round "3"]
[White "bedgasm"]
[Black "klimkoj"]
[Result "0-1"]
[WhiteElo "2230"]
[BlackElo "2110"]
[TimeControl "600+2"]
[EndTime "10:23:46 PDT"]
[Termination "klimkoj won by resignation"]

1. Nf3 {[%clk 0:09:59.2]} 1... Nf6 {[%clk 0:09:59.6]} 2. g3 {[%clk 0:09:57.8]}
2... g6 {[%clk 0:10:00.3]} 3. Bg2 {[%clk 0:09:56.1]} 3... Bg7 {[%clk 0:10:01.3]}
4. O-O {[%clk 0:09:57.3]} 4... O-O {[%clk 0:10:02]} 5. b3 {[%clk 0:09:54.4]}
5... c5 {[%clk 0:09:58.4]} 6. Bb2 {[%clk 0:09:53.5]} 6... Nc6 {[%clk 0:09:59.7]}
7. c4 {[%clk 0:09:44.7]} 7... Qc7 {[%clk 0:09:56]} 8. d3 {[%clk 0:09:38.6]} 8...
Rd8 {[%clk 0:09:52.5]} 9. e4 {[%clk 0:09:32.7]} 9... b6 {[%clk 0:09:51.8]} 10.
Nc3 {[%clk 0:09:14]} 10... Bb7 {[%clk 0:09:08.1]} 11. Re1 {[%clk 0:08:19.4]}
11... e5 {[%clk 0:08:26]} 12. Nd5 {[%clk 0:08:04.9]} 12... Qd6 {[%clk
0:08:07.1]} 13. Qd2 {[%clk 0:06:57.4]} 13... Nxd5 {[%clk 0:07:52.4]} 14. exd5
{[%clk 0:06:48.3]} 14... Nd4 {[%clk 0:07:52.6]} 15. Bxd4 {[%clk 0:06:39.4]}
15... cxd4 {[%clk 0:07:46.2]} 16. h4 {[%clk 0:05:50]} 16... Rac8 {[%clk
0:07:33.8]} 17. h5 {[%clk 0:05:47.6]} 17... Re8 {[%clk 0:07:14.9]} 18. Qg5
{[%clk 0:05:21.6]} 18... Qf6 {[%clk 0:06:50]} 19. Qxf6 {[%clk 0:03:59.3]} 19...
Bxf6 {[%clk 0:06:48.5]} 20. Bh3 {[%clk 0:04:00.8]} 20... Rcd8 {[%clk 0:06:42.9]}
21. Nd2 {[%clk 0:03:45.8]} 21... d6 {[%clk 0:06:33.1]} 22. Ne4 {[%clk
0:03:14.8]} 22... Be7 {[%clk 0:06:33.3]} 23. f4 {[%clk 0:02:58.9]} 23... f5
{[%clk 0:06:27.6]} 24. Ng5 {[%clk 0:02:04.5]} 24... Bxg5 {[%clk 0:06:17.8]} 25.
fxg5 {[%clk 0:02:06.4]} 25... Bc8 {[%clk 0:05:48.1]} 26. a4 {[%clk 0:01:55.6]}
26... e4 {[%clk 0:05:26]} 27. Bg2 {[%clk 0:01:36.9]} 27... exd3 {[%clk 0:04:30]}
28. Rad1 {[%clk 0:01:26.5]} 28... Rxe1+ {[%clk 0:03:49.4]} 29. Rxe1 {[%clk
0:01:25.8]} 29... f4 {[%clk 0:03:50.5]} 30. gxf4 {[%clk 0:00:33.1]} 30... Bg4
{[%clk 0:03:49]} 31. Re4 {[%clk 0:00:13.3]} 31... d2 {[%clk 0:03:48.1]} 32. Rxd4
{[%clk 0:00:12.7]} 32... d1=Q+ {[%clk 0:03:49]} 33. Rxd1 {[%clk 0:00:11.2]}
33... Bxd1 {[%clk 0:03:50.9]} 34. b4 {[%clk 0:00:08.6]} 34... Bxa4 {[%clk
0:03:51]} 35. hxg6 {[%clk 0:00:07.4]} 35... hxg6 {[%clk 0:03:52]} 36. Bh3 {[%clk
0:00:08.7]} 36... Bb3 {[%clk 0:03:49.1]} 37. Be6+ {[%clk 0:00:09.2]} 37... Kg7
{[%clk 0:03:50.2]} 38. Kf1 {[%clk 0:00:09.2]} 38... Bxc4+ {[%clk 0:03:51]} 39.
Kf2 {[%clk 0:00:10.7]} 39... a5 {[%clk 0:03:51.2]} 0-1